bitfinex-derivatives/quotes_SOLF0:USTF0_20250603
["timestamp","ask_amount","ask_price","bid_price","bid_amount"]
[1748973967404,0.04294068,160.4,160.35,11.88761463]
[1748973968498,6.27364068,160.4,160.36,6.2319]
[1748973968701,6.27364068,160.4,160.35,11.88761463]
[1748973968903,6.231,160.39,160.35,18.11981463]
[1748973969108,9.78035531,160.4,160.33,2.1678]
[1748973969306,9.78035531,160.4,160.32,11.82531463]
[1748973969603,9.73741463,160.34,160.27,1.08536319]
[1748973969907,9.78205168,160.32,160.25,9.73741463]
[1748973970305,9.78205168,160.32,160.24,2.55397415]
[1748973970306,0.04463705,160.32,160.24,2.55397415]
[1748973970509,0.04463705,160.32,160.24,12.29138878]
[1748973970510,48.23151463,160.31,160.24,12.29138878]
[1748973970710,41.99741463,160.31,160.24,12.29138878]
[1748973971811,32.26,160.31,160.24,12.29138878]
[1748973972108,32.26,160.31,160.26,9.73741463]
[1748973972414,6.2344,160.3,160.25,6.2359]
[1748973973102,6.2348,160.29,160.24,12.29138878]
[1748973973301,0.04790179,160.28,160.25,2.6125855]
[1748973973502,0.04790179,160.28,160.25,6.2359]
[1748973973707,0.04790179,160.28,160.26,2.61258323]
[1748973973908,0.04790179,160.28,160.25,6.2359]
[1748973974109,0.04790179,160.28,160.26,6.2358]
[1748973974304,0.04790179,160.28,160.27,2.61257904]
[1748973974509,0.04790179,160.28,160.27,2.61244481]
[1748973974711,0.04790179,160.28,160.27,2.61244806]
[1748973974908,0.04790179,160.28,160.24,12.29138878]
[1748973975114,0.04790179,160.28,160.25,6.2359]
[1748973975611,0.04790179,160.28,160.24,12.29138878]
[1748973976314,0.04790179,160.28,160.24,2.55397415]
[1748973976918,6.28300179,160.28,160.25,2.61702273]
[1748973977117,0.04790179,160.28,160.24,2.55397415]
[1748973977316,9.78531642,160.28,160.24,2.55397415]
[1748973977513,6.2355,160.27,160.24,2.55397415]
[1748973977717,6.2355,160.27,160.25,2.61722983]
[1748973977921,9.78531642,160.28,160.24,2.55397415]
[1748973978811,9.78531642,160.28,160.25,2.61189031]
[1748973979015,9.78531642,160.28,160.24,2.55397415]
[1748973979217,0.04790179,160.28,160.24,2.55397415]
[1748973979921,0.04790179,160.28,160.26,6.2358]
[1748973980519,0.04790179,160.28,160.27,2.61220575]
[1748973980720,0.04790179,160.28,160.27,2.6122388]
[1748973980929,0.04790179,160.28,160.24,8.79017415]
[1748973981111,0.04790179,160.28,160.25,2.61233242]
[1748973981316,9.78531642,160.28,160.24,8.79047415]
[1748973981521,6.2354,160.27,160.24,2.55397415]
[1748973981718,32.06,160.27,160.25,2.61050911]
[1748973981924,32.06,160.27,160.24,2.55397415]
[1748973982131,32.06,160.27,160.25,2.61062278]
[1748973982321,32.06,160.27,160.24,2.55397415]
[1748973982623,32.06,160.27,160.25,2.61064258]
[1748973982838,32.06,160.27,160.24,2.55397415]
[1748973983321,0.04790179,160.28,160.25,2.61064023]
[1748973983528,0.04790179,160.28,160.24,2.55397415]
[1748973983921,0.04790179,160.28,160.25,6.236]
[1748973984123,0.04790179,160.28,160.24,2.55397415]
[1748973984831,9.78531642,160.28,160.25,2.61884077]
[1748973985123,6.236,160.27,160.26,2.61886459]
[1748973985330,6.236,160.27,160.24,2.55397415]
[1748973985533,0.04790179,160.28,160.25,2.61885418]
[1748973985723,0.04790179,160.28,160.24,2.55397415]
[1748973985724,0.04790179,160.28,160.26,2.61875386]
[1748973986031,0.04790179,160.28,160.24,12.29138878]
[1748973986231,0.04790179,160.28,160.25,8.85497458]
[1748973986427,0.04790179,160.28,160.26,2.61867458]
[1748973986628,6.2361,160.27,160.24,2.55397415]
[1748973986831,0.04790179,160.28,160.25,2.6187426]
[1748973987030,0.04790179,160.28,160.24,2.55397415]
[1748973987231,0.04790179,160.28,160.25,2.61867199]
[1748973987438,0.04790179,160.28,160.26,2.61866626]
[1748973987732,9.78531642,160.28,160.24,2.55397415]
[1748973987927,6.2367,160.25,160.24,2.55397415]
[1748973988229,9.78531642,160.28,160.24,5.17079078]
[1748973988428,9.78531642,160.28,160.24,2.55397415]
[1748973988829,9.78531642,160.28,160.25,2.6167588]
[1748973989032,16.02111642,160.28,160.25,6.2365]
[1748973989332,0.04790179,160.28,160.26,2.61670059]
[1748973989527,0.04790179,160.28,160.25,6.2366]
[1748973989932,0.04790179,160.28,160.26,2.61669988]
[1748973990130,0.04790179,160.28,160.26,6.2361]
[1748973990325,0.04790179,160.28,160.27,2.6167013]
[1748973990535,0.04790179,160.28,160.27,2.61657695]
[1748973990829,0.04790179,160.28,160.26,6.236]
[1748973992335,0.04790179,160.28,160.27,2.61687838]
[1748973992733,0.04790179,160.28,160.26,6.236]
[1748973993535,0.04790179,160.28,160.24,2.55397415]
[1748973994039,0.04790179,160.28,160.25,6.2365]
[1748973994339,0.04790179,160.28,160.24,2.55397415]
[1748973994837,0.04790179,160.28,160.25,9.73741463]
[1748973995036,0.04790179,160.28,160.26,6.236]
[1748973995541,0.04790179,160.28,160.27,2.61686798]
[1748973995936,0.04790179,160.28,160.26,6.236]
[1748973996437,0.04790179,160.28,160.25,9.73741463]
[1748973996633,0.04790179,160.28,160.26,2.61688804]
[1748973996941,0.04790179,160.28,160.27,6.2359]
[1748973997238,32.08,160.32,160.27,9.73741463]
[1748973997543,6.2336,160.33,160.28,9.73741463]
[1748973998039,6.2336,160.33,160.29,8.85180755]
[1748973998235,6.27881144,160.32,160.29,0.0411038]
[1748973998543,6.27881144,160.32,160.3,2.61687548]
[1748973998930,6.27881144,160.32,160.29,0.0411038]
[1748973999130,0.04461144,160.32,160.29,0.0411038]
[1748973999635,6.27881144,160.32,160.29,0.0411038]
[1748974000338,6.2344,160.31,160.29,0.0411038]
[1748974000636,0.04461144,160.32,160.29,6.2762038]
[1748974000844,0.04461144,160.32,160.31,2.61681658]
[1748974001233,0.04461144,160.32,160.29,6.2762038]
[1748974002333,0.04461144,160.32,160.29,0.0411038]
[1748974002742,0.04461144,160.32,160.29,6.2760038]
[1748974003446,0.04461144,160.32,160.3,6.2347]
[1748974003642,0.04461144,160.32,160.29,0.0411038]
[1748974004143,0.04461144,160.32,160.29,6.2761038]
[1748974004438,0.04461144,160.32,160.29,0.0411038]
[1748974005245,6.27881144,160.32,160.29,0.0411038]
[1748974007140,6.27881144,160.32,160.3,2.60281093]
[1748974007340,6.27881144,160.32,160.29,0.0411038]
[1748974007645,6.2346,160.31,160.29,0.0411038]
[1748974007847,6.2346,160.31,160.3,2.60282132]
[1748974008046,0.04461144,160.32,160.29,0.0411038]
[1748974008240,6.27881144,160.32,160.29,0.0411038]
[1748974008848,6.27881144,160.32,160.3,2.60281775]
[1748974009043,6.27881144,160.32,160.29,0.0411038]
[1748974009645,0.04461144,160.32,160.3,2.60219512]
[1748974009846,0.04461144,160.32,160.31,2.60219474]
[1748974010046,0.04461144,160.32,160.29,0.0411038]
[1748974010246,0.04461144,160.32,160.29,6.2761038]
[1748974010447,0.04461144,160.32,160.29,0.0411038]
[1748974010849,0.04461144,160.32,160.29,6.2760038]
[1748974011052,0.04461144,160.32,160.29,0.0411038]
[1748974011350,0.04461144,160.32,160.29,6.2761038]
[1748974012044,0.04461144,160.32,160.3,8.83689437]
[1748974012242,0.04461144,160.32,160.3,6.2347]
[1748974012846,0.04461144,160.32,160.31,2.60313263]
[1748974013054,0.04461144,160.32,160.29,0.0411038]
[1748974013550,0.04461144,160.32,160.3,9.73741463]
[1748974014055,0.04461144,160.32,160.31,8.83998162]
[1748974014257,0.04461144,160.32,160.31,6.2344]
[1748974014452,38.48173,160.38,160.3,9.73741463]
[1748974014757,0.22973,160.38,160.36,9.73741463]
[1748974014948,0.22973,160.38,160.37,2.60458315]
[1748974015257,0.22973,160.38,160.36,9.73741463]
[1748974016152,0.22973,160.38,160.37,2.6044751]
[1748974016361,0.22973,160.38,160.36,9.73741463]
[1748974016555,0.22973,160.38,160.37,2.60448548]
[1748974016953,0.22973,160.38,160.36,9.73741463]
[1748974017152,0.22973,160.38,160.37,2.60448867]
[1748974017552,0.22973,160.38,160.36,9.73741463]
[1748974017961,0.22973,160.38,160.37,6.232]
[1748974018156,85.00071275,160.45,160.38,9.73741463]
[1748974018455,32.02,160.46,160.43,9.73741463]
[1748974018659,538.7,160.48,160.43,9.73741463]
[1748974018860,32.02,160.49,160.43,9.73741463]
[1748974019251,6.2284,160.47,160.44,0.04196336]
[1748974019457,0.04099893,160.48,160.44,0.04196336]
[1748974020557,9.73741463,160.46,160.44,6.336e-05]
[1748974020756,40.3852,160.45,160.44,6.336e-05]
[1748974021063,9.73741463,160.43,160.36,9.73741463]
[1748974021263,9.73741463,160.43,160.37,6.2318]
[1748974021949,0.03948185,160.42,160.38,0.04101487]
[1748974023252,6.26978185,160.42,160.38,6.27231487]
[1748974023459,0.03948185,160.42,160.38,0.04101487]
[1748974023662,0.03948185,160.42,160.39,9.73741463]
[1748974024253,0.03948185,160.42,160.4,6.2306]
[1748974025756,0.03948185,160.42,160.41,6.2305]
[1748974026069,9.77689648,160.42,160.38,0.04101487]
[1748974028568,6.2313,160.39,160.38,0.04101487]
[1748974031571,6.2326,160.36,160.32,34.0622]
[1748974031972,9.73741463,160.38,160.32,34.0622]
[1748974032266,9.73741463,160.38,160.32,2.0622]
[1748974032468,9.73741463,160.36,160.31,2.0916]
[1748974032674,0.04478626,160.35,160.32,0.03947431]
[1748974032883,6.2333,160.34,160.32,0.03947431]
[1748974033480,6.27768626,160.35,160.32,0.03947431]
[1748974034076,0.04478626,160.35,160.32,0.03947431]
[1748974034276,9.73741463,160.34,160.32,0.03947431]
[1748974034469,15.97071463,160.34,160.32,0.03947431]
[1748974034876,9.73741463,160.34,160.32,0.03947431]
[1748974035071,6.2336,160.33,160.32,0.03947431]
[1748974035377,9.73741463,160.34,160.32,0.03947431]
[1748974035571,15.97091463,160.34,160.32,0.03947431]
[1748974035875,9.73741463,160.34,160.32,0.03947431]
[1748974036265,6.2336,160.33,160.32,0.03947431]
[1748974039164,6.2336,160.33,160.32,2.62910131]
[1748974039481,6.2336,160.33,160.32,0.03947431]
[1748974039667,6.2336,160.33,160.32,2.62910094]
[1748974039869,6.2336,160.33,160.32,0.03947431]
[1748974040269,6.2336,160.33,160.32,2.62910168]
[1748974040576,6.2336,160.33,160.32,2.62909951]
[1748974040771,6.2336,160.33,160.32,0.03947431]
[1748974041875,6.2336,160.33,160.32,2.62994342]
[1748974042071,6.2336,160.33,160.32,2.63000999]
[1748974042278,6.2336,160.33,160.32,0.03947431]
[1748974042880,6.2336,160.33,160.32,2.63007019]
[1748974043266,6.2336,160.33,160.32,0.03947431]
[1748974043468,15.97081463,160.34,160.32,0.03947431]
[1748974043874,9.73741463,160.34,160.32,0.03947431]
[1748974044871,9.73741463,160.34,160.33,2.59853418]
[1748974045173,15.97091463,160.34,160.33,2.59860367]
[1748974045379,15.97091463,160.34,160.32,0.03947431]
[1748974045578,15.97091463,160.34,160.33,2.5986032]
[1748974045774,15.97091463,160.34,160.32,0.03947431]
[1748974045982,9.73741463,160.34,160.32,0.03947431]
[1748974046380,9.73741463,160.34,160.33,2.59907352]
[1748974046582,15.97101463,160.34,160.32,0.03947431]
[1748974047380,6.2336,160.33,160.32,0.03947431]
[1748974047581,6.2336,160.33,160.32,2.63863999]
[1748974047777,6.2336,160.33,160.32,0.03947431]
[1748974049479,6.2336,160.33,160.32,2.63594481]
[1748974049674,6.2336,160.33,160.32,0.03947431]
[1748974049879,6.2336,160.33,160.32,2.635946]
[1748974050083,6.2336,160.33,160.32,2.63589773]
[1748974050680,6.2336,160.33,160.32,2.63589632]
[1748974050984,6.2336,160.33,160.32,0.03947431]
[1748974051278,6.2336,160.33,160.32,2.63589737]
[1748974051479,6.2336,160.33,160.32,0.03947431]
[1748974052186,6.2336,160.33,160.32,2.63569535]
[1748974052385,6.2336,160.33,160.32,2.63567341]
[1748974052787,6.2336,160.33,160.32,0.03947431]
[1748974053186,6.2336,160.33,160.32,2.63566307]
[1748974053388,6.2336,160.33,160.32,0.03947431]
[1748974054589,6.2336,160.33,160.32,2.63584862]
[1748974054790,6.2336,160.33,160.32,0.03947431]
[1748974055289,6.2336,160.33,160.32,2.6358114]
[1748974055489,6.2336,160.33,160.32,0.03947431]
[1748974055680,6.2336,160.33,160.32,2.63583171]
[1748974055888,6.2357,160.28,160.24,14.59295901]
[1748974056192,9.73741463,160.29,160.24,8.35615901]
[1748974056390,15.97271463,160.29,160.25,6.2364]
[1748974056689,9.73741463,160.29,160.25,6.2364]
[1748974056886,9.78529499,160.29,160.25,6.26764418]
[1748974057086,6.2355,160.28,160.25,0.03124418]
[1748974057286,9.78529499,160.29,160.25,0.03124418]
[1748974057686,6.2355,160.28,160.25,0.03124418]
[1748974058188,6.2359,160.27,160.25,0.03124418]
[1748974058687,9.78529499,160.29,160.25,0.03124418]
[1748974058885,6.2362,160.26,160.25,0.03124418]
[1748974060086,32.24,160.27,160.25,0.03124418]
[1748974060889,38.4761,160.27,160.25,0.03124418]
[1748974061895,6.2362,160.26,160.25,0.03124418]
[1748974062293,32.24,160.27,160.25,0.03124418]
[1748974062797,6.2357,160.28,160.25,0.03124418]
[1748974063695,0.04788036,160.29,160.25,0.03124418]
[1748974064096,0.04788036,160.29,160.25,6.26764418]
[1748974064296,0.04788036,160.29,160.25,0.03124418]
[1748974066193,0.04788036,160.29,160.26,6.2359]
[1748974066798,0.04788036,160.29,160.25,0.03124418]
[1748974068098,0.04788036,160.29,160.26,6.236]
[1748974069705,0.04788036,160.29,160.25,5.83421209]
[1748974070088,0.04788036,160.29,160.26,9.73741463]
[1748974070297,0.04788036,160.29,160.28,6.2354]
[1748974071801,0.04788036,160.29,160.26,9.73741463]
[1748974072293,0.04788036,160.29,160.26,15.97321463]
[1748974072493,0.04788036,160.29,160.26,9.73741463]
[1748974073101,0.04788036,160.29,160.27,6.2357]
[1748974074497,0.04788036,160.29,160.28,6.2353]
[1748974074701,31.86,160.33,160.28,9.73741463]
[1748974075008,31.86,160.33,160.28,15.54956316]
[1748974075206,31.86,160.33,160.29,6.2347]
[1748974075706,31.90713723,160.33,160.29,6.27417164]
[1748974076402,0.04713723,160.33,160.29,12.08632017]
[1748974077607,0.04713723,160.33,160.29,12.09561606]
[1748974079206,0.04713723,160.33,160.3,6.2344]
[1748974079809,0.04713723,160.33,160.32,5.82144442]
[1748974080306,0.04713723,160.33,160.32,12.05514442]
[1748974080704,0.04713723,160.33,160.32,6.2337]
[1748974081803,0.04713723,160.33,160.31,17.486946]
[1748974082401,0.04713723,160.33,160.31,23.720846]
[1748974082803,0.04713723,160.33,160.31,17.486946]
[1748974083108,43.71431463,160.39,160.31,9.73741463]
[1748974083308,38.0914,160.39,160.33,15.55658945]
[1748974083811,6.2315,160.38,160.33,15.55658945]
[1748974084104,0.04706553,160.37,160.34,0.04573711]
[1748974084501,6.27886553,160.37,160.34,0.04573711]
[1748974085113,0.04706553,160.37,160.34,0.04573711]
[1748974085999,6.2326,160.35,160.34,0.04573711]
[1748974087512,15.97001463,160.35,160.34,0.04573711]
[1748974087911,6.2326,160.35,160.34,0.04573711]
[1748974088917,6.2342,160.31,160.28,37.67357757]
[1748974089300,6.2342,160.31,160.28,5.81357757]
[1748974089612,9.73741463,160.33,160.26,17.6371922]
[1748974090011,0.04231852,160.31,160.28,0.04729134]
[1748974090317,6.27661852,160.31,160.28,0.04729134]
[1748974090513,0.04231852,160.31,160.28,9.78470597]
[1748974090714,0.04231852,160.31,160.3,9.73741463]
[1748974090915,0.04231852,160.31,160.3,15.97191463]
[1748974091314,45.61131463,160.38,160.3,9.73741463]
[1748974091515,6.2324,160.36,160.31,6.2339]
[1748974092320,0.04795775,160.35,160.32,0.04372551]
[1748974092618,0.04795775,160.35,160.32,6.27742551]
[1748974092819,0.04795775,160.35,160.32,9.78114014]
[1748974094010,0.04795775,160.35,160.32,0.04372551]
[1748974095519,6.28065775,160.35,160.32,0.04372551]
[1748974095915,6.233,160.34,160.32,0.04372551]
[1748974096516,6.28085775,160.35,160.32,0.04372551]
[1748974097219,0.04795775,160.35,160.32,0.04372551]
[1748974098521,6.2333,160.33,160.32,0.04372551]
[1748974098715,0.04795775,160.35,160.32,0.04372551]
[1748974100026,6.2333,160.33,160.32,0.04372551]
[1748974100826,37.973,160.34,160.32,0.04372551]
[1748974101325,31.74,160.34,160.32,0.04372551]
[1748974101519,37.9731,160.34,160.32,0.04372551]
[1748974102029,31.74,160.34,160.32,0.04372551]
[1748974102227,6.2333,160.33,160.32,0.04372551]
[1748974110030,6.2349,160.29,160.27,5.82016134]
[1748974110430,9.73741463,160.31,160.27,5.82016134]
[1748974110634,9.73741463,160.31,160.26,5.82016134]
[1748974110938,0.0401996,160.3,160.27,5.86191418]
[1748974111134,6.2746996,160.3,160.27,5.86191418]
[1748974111334,0.0401996,160.3,160.27,5.86191418]
[1748974111529,0.0401996,160.3,160.28,6.2352]
[1748974111934,0.0401996,160.3,160.27,15.6014771]
[1748974112433,0.0401996,160.3,160.27,21.8369771]
[1748974112640,0.0401996,160.3,160.28,5.82230963]
[1748974113339,0.0401996,160.3,160.28,5.82239202]
[1748974115942,0.0401996,160.3,160.28,5.82291967]
[1748974116845,0.0401996,160.3,160.29,6.2349]
[1748974119946,6.2333,160.34,160.3,6.2343]
[1748974120644,33.7695,160.38,160.31,9.73741463]
[1748974120843,11.82401463,160.4,160.33,9.77852195]
[1748974121048,0.04078521,160.36,160.33,9.77852195]
[1748974121748,0.04078521,160.36,160.34,6.233]
[1748974122845,0.04078521,160.36,160.33,21.83493939]
[1748974123044,0.04078521,160.36,160.33,15.60193939]
[1748974123453,0.04078521,160.36,160.34,6.2328]
[1748974123660,0.04078521,160.36,160.33,15.59900698]
[1748974124149,0.04078521,160.36,160.33,21.83210698]
[1748974124349,0.04078521,160.36,160.33,5.86159235]
[1748974124549,6.2328,160.35,160.33,0.04110732]
[1748974124744,0.04078521,160.36,160.33,0.04110732]
[1748974125349,0.04078521,160.36,160.34,9.73741463]
[1748974126851,0.04078521,160.36,160.34,15.97031463]
[1748974127345,0.04078521,160.36,160.35,6.2326]
[1748974127748,0.04078521,160.36,160.34,9.73741463]
[1748974128453,35.7283,160.44,160.34,41.27741463]
[1748974128653,6.2305,160.41,160.38,9.73741463]
[1748974129443,6.27347517,160.41,160.38,9.77782305]
[1748974130253,6.2307,160.4,160.38,9.77782305]
[1748974130646,6.231,160.39,160.38,0.04040842]
[1748974131954,6.2307,160.4,160.38,0.04040842]
[1748974132454,6.27337517,160.41,160.38,0.04040842]
[1748974136960,0.04297517,160.41,160.38,0.04040842]
[1748974137859,0.04297517,160.41,160.38,9.77782305]
[1748974138054,6.27347517,160.41,160.38,9.77782305]
[1748974139057,6.2306,160.4,160.38,9.77782305]
[1748974140362,6.231,160.39,160.38,0.04040842]
[1748974141568,6.2308,160.4,160.38,0.04040842]
[1748974142365,6.231,160.39,160.38,0.04040842]
[1748974144559,6.2327,160.35,160.31,31.52]
[1748974144760,6.2327,160.35,160.32,9.73741463]
[1748974145164,6.2327,160.35,160.32,15.97101463]
[1748974145364,6.2327,160.35,160.32,9.73741463]
[1748974145567,0.04786194,160.35,160.32,9.77773414]
[1748974146157,0.04786194,160.35,160.33,6.2332]
[1748974147461,0.04786194,160.35,160.32,16.01133414]
[1748974147660,6.28056194,160.35,160.32,16.01133414]
[1748974148067,0.04786194,160.35,160.32,16.01133414]
[1748974149062,0.04786194,160.35,160.33,6.2333]
[1748974149466,0.04786194,160.35,160.34,9.73741463]
[1748974149765,0.04786194,160.35,160.34,15.97041463]
[1748974150356,31.52,160.43,160.37,6.2316]
[1748974150563,31.52,160.43,160.38,9.73741463]
[1748974150763,6.2305,160.41,160.38,9.73741463]
[1748974151264,6.27527266,160.41,160.38,9.78342658]
[1748974151465,0.04477266,160.41,160.38,16.01462658]
[1748974151965,0.04477266,160.41,160.38,9.78342658]
[1748974152765,6.27527266,160.41,160.38,16.01482658]
[1748974153166,6.27527266,160.41,160.38,9.78342658]
[1748974153868,6.2309,160.4,160.38,9.78342658]
[1748974154969,6.27517266,160.41,160.38,9.78342658]
[1748974155662,0.04477266,160.41,160.38,9.78342658]
[1748974156366,0.04477266,160.41,160.39,6.2308]
[1748974156661,0.04477266,160.41,160.38,9.78342658]
[1748974157068,6.2309,160.4,160.38,9.78342658]
[1748974158465,6.2311,160.39,160.38,9.78342658]
[1748974158667,6.2311,160.39,160.38,0.04601195]
[1748974163174,9.73741463,160.4,160.38,0.04601195]
[1748974163175,6.2308,160.4,160.38,0.04601195]
[1748974163379,0.04477266,160.41,160.38,0.04601195]
[1748974163572,6.2308,160.4,160.38,0.04601195]
[1748974165981,6.2311,160.39,160.38,0.04601195]
[1748974167474,9.73741463,160.4,160.33,15.55840141]
[1748974168266,6.233,160.34,160.33,15.55840141]
[1748974168571,6.233,160.34,160.33,5.82098678]
[1748974169279,6.2334,160.33,160.32,0.04422]
[1748974169476,0.04168935,160.35,160.32,0.04422]
[1748974170175,6.2332,160.34,160.32,0.04422]
[1748974170681,6.2334,160.33,160.32,0.04422]
[1748974171175,0.04168935,160.35,160.32,0.04422]
[1748974171978,6.2334,160.33,160.32,0.04422]
[1748974174679,6.2346,160.3,160.28,5.81938016]
[1748974174982,6.2346,160.3,160.27,5.81938016]
[1748974175169,6.2346,160.3,160.27,12.05508016]
[1748974175780,6.28112138,160.3,160.27,12.10064319]
[1748974176281,0.04652138,160.3,160.27,12.10064319]
[1748974176679,9.73741463,160.29,160.24,2.55397415]
[1748974177382,6.2363,160.26,160.24,2.55397415]
[1748974177773,0.04520001,160.27,160.25,6.2365]
[1748974178173,0.04520001,160.27,160.24,2.55397415]
[1748974178682,0.04520001,160.27,160.24,8.79047415]
[1748974178884,0.04520001,160.27,160.24,2.55397415]
[1748974179075,0.04520001,160.27,160.25,6.2364]
[1748974180487,0.04520001,160.27,160.26,6.2361]
[1748974181282,41.25741463,160.34,160.26,9.73741463]
[1748974181985,41.25741463,160.34,160.28,9.73741463]
[1748974182180,6.2337,160.33,160.29,6.2348]
[1748974182385,0.045366,160.33,160.29,6.27987099]
[1748974182779,6.278966,160.33,160.29,6.27987099]
[1748974183377,6.2339,160.32,160.29,6.27987099]
[1748974183586,0.045366,160.33,160.29,0.04507099]
[1748974183987,6.2346,160.3,160.29,0.04507099]
[1748974184176,0.045366,160.33,160.29,0.04507099]
[1748974184581,6.2344,160.31,160.29,0.04507099]
[1748974185188,6.2346,160.3,160.29,0.04507099]
[1748974185483,0.045366,160.33,160.29,0.04507099]
[1748974185885,6.2344,160.31,160.29,0.04507099]
[1748974188101,0.045366,160.33,160.29,0.04507099]
[1748974188102,6.234,160.32,160.29,0.04507099]
[1748974188296,0.045366,160.33,160.29,0.04507099]
[1748974188488,6.278966,160.33,160.29,0.04507099]
[1748974188694,0.045366,160.33,160.29,0.04507099]
[1748974190002,6.2344,160.31,160.29,0.04507099]
[1748974192902,9.73741463,160.32,160.29,0.04507099]
[1748974193991,6.2345,160.31,160.29,0.04507099]
[1748974194197,9.73741463,160.32,160.29,6.27997099]
[1748974194398,9.73741463,160.32,160.29,0.04507099]
[1748974194805,15.97201463,160.3,160.29,0.04507099]
[1748974195502,6.2361,160.27,160.24,40.31057415]
[1748974195899,9.73741463,160.3,160.24,40.31057415]
[1748974196195,6.2365,160.26,160.24,34.07397415]
[1748974196904,6.2365,160.26,160.24,40.31077415]
[1748974197698,6.28059962,160.27,160.24,40.31077415]
[1748974197897,0.04469962,160.27,160.24,34.07397415]
[1748974198600,0.04469962,160.27,160.25,6.2362]
[1748974199201,0.04469962,160.27,160.26,6.2361]
[1748974199594,0.04469962,160.27,160.24,34.07397415]
[1748974200098,0.04469962,160.27,160.25,6.2364]
[1748974200901,0.04469962,160.27,160.26,6.2362]
[1748974203106,4.153,160.38,160.29,6.2347]
[1748974203107,9.73741463,160.34,160.29,6.2347]
[1748974203294,33.5993,160.36,160.29,6.2347]
[1748974203295,43.33671463,160.36,160.29,6.2347]
[1748974203898,43.33671463,160.36,160.28,41.25741463]
[1748974204104,0.03982218,160.34,160.3,9.78288036]
[1748974205006,0.03982218,160.34,160.3,16.01718036]
[1748974205910,0.03982218,160.34,160.3,9.78288036]
[1748974206510,0.03982218,160.34,160.3,16.01738036]
[1748974206809,0.03982218,160.34,160.3,9.78288036]
[1748974207613,6.27302218,160.34,160.3,6.28006573]
[1748974207909,0.03982218,160.34,160.3,6.28006573]
[1748974208107,6.2338,160.33,160.3,0.04546573]
[1748974209412,16.01053681,160.34,160.3,0.04546573]
[1748974209613,6.27312218,160.34,160.3,0.04546573]
[1748974210514,0.03982218,160.34,160.3,6.27986573]
[1748974211606,0.03982218,160.34,160.3,0.04546573]
[1748974212116,6.2341,160.32,160.3,0.04546573]
[1748974212612,6.2336,160.33,160.3,0.04546573]
[1748974212813,0.03982218,160.34,160.3,0.04546573]
[1748974213214,0.03982218,160.34,160.31,9.73741463]
[1748974213408,0.03982218,160.34,160.32,6.2336]
[1748974213807,0.03982218,160.34,160.31,9.73741463]
[1748974214011,0.03982218,160.34,160.3,0.04546573]
[1748974214413,6.27312218,160.34,160.3,0.04546573]
[1748974214812,0.03982218,160.34,160.3,6.28006573]
[1748974215613,0.03982218,160.34,160.31,6.234]
[1748974215911,0.03982218,160.34,160.31,9.73741463]
[1748974216119,0.03982218,160.34,160.32,6.2336]
[1748974216919,0.03982218,160.34,160.3,0.04546573]
[1748974217113,9.73741463,160.33,160.3,0.04546573]
[1748974217710,6.2343,160.31,160.3,0.04546573]
[1748974217913,9.73741463,160.33,160.3,0.04546573]
[1748974218110,0.03982218,160.34,160.3,0.04546573]
[1748974218315,6.2338,160.33,160.3,0.04546573]
[1748974218620,0.03982218,160.34,160.3,0.04546573]
[1748974218919,6.2339,160.32,160.3,0.04546573]
[1748974220109,6.2343,160.31,160.3,0.04546573]
[1748974221720,0.03982218,160.34,160.3,9.78288036]
[1748974221923,0.03982218,160.34,160.3,15.60818683]
[1748974222321,0.03982218,160.34,160.3,47.12818683]
[1748974222617,6.2343,160.31,160.3,0.04546573]
[1748974223023,9.73741463,160.33,160.3,0.04546573]
[1748974223518,6.2341,160.32,160.3,0.04546573]
[1748974223722,9.73741463,160.33,160.3,0.04546573]
[1748974224516,31.55982218,160.34,160.24,8.37928062]
[1748974224712,31.55982218,160.34,160.24,2.55397415]
[1748974224713,9.73741463,160.26,160.24,2.55397415]
[1748974224922,6.2381,160.22,160.19,5.82530647]
[1748974225118,6.2381,160.22,160.18,5.82530647]
[1748974225519,9.73741463,160.24,160.17,31.52]
[1748974225725,0.04595886,160.22,160.18,9.76853856]
[1748974226223,0.04595886,160.22,160.21,6.2382]
[1748974226721,0.04595886,160.22,160.21,37.7582]
[1748974227231,6.2358,160.28,160.23,6.2373]
[1748974227522,31.52,160.29,160.24,9.73741463]
[1748974228024,45.36931463,160.32,160.24,9.73741463]
[1748974228328,0.0422739,160.3,160.26,0.04332331]
[1748974228522,0.0422739,160.3,160.26,6.27932331]
[1748974228917,0.0422739,160.3,160.28,9.73741463]
[1748974229122,9.73741463,160.37,160.28,9.73741463]
[1748974229315,9.73741463,160.37,160.31,9.73741463]
[1748974229515,6.2328,160.35,160.31,9.73741463]
[1748974229915,9.73741463,160.35,160.26,31.52]